[Event "Titled Tuesday Blitz September 28 2021"]
[White "Tarasova, Viktoriya"]
[Black "ketster"]
[WhiteFideId "4175840"]
[WhiteElo "2182"]
[BlackElo "2554"]
[Result "0-1"]
[Round "09"]
[TimeControl "180+1"]
[Date "2021.09.28"]
[WhiteClock "0:00:23"]
[BlackClock "0:00:26"]

1. d4 {[%clk 0:03:00]}  Nf6 {[%clk 0:02:59]} 2. c4 {[%clk 0:02:58]}  e6 {[%clk 0:02:59]} 3. Nc3 {[%clk 0:02:58]}  Bb4 {[%clk 0:03:00]} 4. Nf3 {[%clk 0:02:56]}  b6 {[%clk 0:02:57]} 5. e3 {[%clk 0:02:56]}  Bb7 {[%clk 0:02:56]} 6. Bd3 {[%clk 0:02:56]}  O-O {[%clk 0:02:54]} 7. O-O {[%clk 0:02:55]}  d5 {[%clk 0:02:52]} 8. cxd5 {[%clk 0:02:54]}  exd5 {[%clk 0:02:50]} 9. Ne5 {[%clk 0:02:54]}  Nbd7 {[%clk 0:02:46]} 10. f4 {[%clk 0:02:54]}  Ne4 {[%clk 0:02:33]} 11. Nxe4 {[%clk 0:02:48]}  dxe4 {[%clk 0:02:32]} 12. Bc4 {[%clk 0:02:48]}  Qe7 {[%clk 0:02:15]} 13. Qb3 {[%clk 0:02:45]}  Bd6 {[%clk 0:02:12]} 14. Bd2 {[%clk 0:02:28]}  c5 {[%clk 0:02:10]} 15. a4 {[%clk 0:02:04]}  cxd4 {[%clk 0:02:07]} 16. exd4 {[%clk 0:01:59]}  Nf6 {[%clk 0:01:56]} 17. a5 {[%clk 0:01:55]}  bxa5 {[%clk 0:01:27]} 18. Rxa5 {[%clk 0:01:53]}  Qc7 {[%clk 0:01:26]} 19. Rfa1 {[%clk 0:01:48]}  a6 {[%clk 0:01:15]} 20. Bxa6 {[%clk 0:01:40]}  Bxa6 {[%clk 0:01:07]} 21. Rxa6 {[%clk 0:01:39]}  Rxa6 {[%clk 0:01:08]} 22. Rxa6 {[%clk 0:01:39]}  Rb8 {[%clk 0:01:08]} 23. Qe3 {[%clk 0:00:59]}  h6 {[%clk 0:01:02]} 24. h3 {[%clk 0:00:56]}  Rxb2 {[%clk 0:00:59]} 25. Ra8+ {[%clk 0:00:54]}  Kh7 {[%clk 0:00:59]} 26. Ng4 {[%clk 0:00:42]}  Rb1+ {[%clk 0:00:39]} 27. Kh2 {[%clk 0:00:41]}  Nxg4+ {[%clk 0:00:33]} 28. hxg4 {[%clk 0:00:42]}  Qe7 {[%clk 0:00:33]} 29. Ra2 {[%clk 0:00:24]}  Bxf4+ {[%clk 0:00:26]} 30. Qxf4 {[%clk 0:00:23]}  Qh4# {[%clk 0:00:26]} 0-1


[Site "https://www.chess.com"]

[Event "Titled Tuesday Blitz September 28 2021"]
[White "Terry, Renato"]
[Black "Pichot, Alan"]
[WhiteFideId "3803457"]
[BlackFideId "110973"]
[WhiteElo "2967"]
[BlackElo "2857"]
[Result "0-1"]
[Round "09"]
[TimeControl "180+1"]
[Date "2021.09.28"]
[WhiteClock "0:00:02"]
[BlackClock "0:00:13"]

1. d4 {[%clk 0:03:00]}  Nf6 {[%clk 0:02:59]} 2. Bg5 {[%clk 0:03:01]}  d5 {[%clk 0:02:53]} 3. Bxf6 {[%clk 0:02:59]}  gxf6 {[%clk 0:02:52]} 4. e3 {[%clk 0:03:00]}  Bf5 {[%clk 0:02:49]} 5. Bd3 {[%clk 0:02:57]}  Bg6 {[%clk 0:02:49]} 6. Nf3 {[%clk 0:02:52]}  e6 {[%clk 0:02:49]} 7. c4 {[%clk 0:02:45]}  c6 {[%clk 0:02:48]} 8. Nc3 {[%clk 0:02:46]}  Nd7 {[%clk 0:02:48]} 9. Bxg6 {[%clk 0:02:37]}  hxg6 {[%clk 0:02:48]} 10. Qb3 {[%clk 0:02:38]}  Qb6 {[%clk 0:02:46]} 11. c5 {[%clk 0:02:36]}  Qc7 {[%clk 0:02:43]} 12. e4 {[%clk 0:02:34]}  Be7 {[%clk 0:02:17]} 13. exd5 {[%clk 0:02:09]}  exd5 {[%clk 0:02:15]} 14. O-O-O {[%clk 0:02:09]}  Kf8 {[%clk 0:02:09]} 15. Rhe1 {[%clk 0:01:53]}  b6 {[%clk 0:02:02]} 16. cxb6 {[%clk 0:01:48]}  axb6 {[%clk 0:02:03]} 17. Kb1 {[%clk 0:01:47]}  Bd6 {[%clk 0:02:01]} 18. Rc1 {[%clk 0:01:18]}  Qb7 {[%clk 0:02:01]} 19. Na4 {[%clk 0:01:07]}  Kg7 {[%clk 0:01:34]} 20. g3 {[%clk 0:01:03]}  Ra5 {[%clk 0:01:17]} 21. h4 {[%clk 0:00:58]}  Rha8 {[%clk 0:01:06]} 22. Nc3 {[%clk 0:00:57]}  b5 {[%clk 0:01:07]} 23. h5 {[%clk 0:00:53]}  b4 {[%clk 0:00:49]} 24. hxg6 {[%clk 0:00:54]}  fxg6 {[%clk 0:00:48]} 25. Re6 {[%clk 0:00:51]}  Bf8 {[%clk 0:00:32]} 26. Ne2 {[%clk 0:00:25]}  Rxa2 {[%clk 0:00:28]} 27. Rcxc6 {[%clk 0:00:25]}  Ra1+ {[%clk 0:00:24]} 28. Kc2 {[%clk 0:00:25]}  Rc8 {[%clk 0:00:25]} 29. Qxd5 {[%clk 0:00:18]}  b3+ {[%clk 0:00:22]} 30. Kd3 {[%clk 0:00:12]}  Ra6 {[%clk 0:00:17]} 31. Rxf6 {[%clk 0:00:02]}  Nxf6 {[%clk 0:00:13]} 0-1


[Site "https://www.chess.com"]

[Event "Titled Tuesday Blitz September 28 2021"]
[White "Thejkumar, M. S."]
[Black "Salinas Herrera, Pablo"]
[WhiteFideId "5009154"]
[BlackFideId "3407128"]
[WhiteElo "2312"]
[BlackElo "2541"]
[Result "0-1"]
[Round "09"]
[TimeControl "180+1"]
[Date "2021.09.28"]
[WhiteClock "0:00:30"]
[BlackClock "0:00:17"]

1. d4 {[%clk 0:03:00]}  d5 {[%clk 0:02:58]} 2. c4 {[%clk 0:02:59]}  c6 {[%clk 0:02:58]} 3. Nf3 {[%clk 0:02:58]}  Nf6 {[%clk 0:02:59]} 4. Qc2 {[%clk 0:02:57]}  dxc4 {[%clk 0:02:59]} 5. e4 {[%clk 0:02:57]}  b5 {[%clk 0:02:59]} 6. b3 {[%clk 0:02:51]}  cxb3 {[%clk 0:02:59]} 7. axb3 {[%clk 0:02:51]}  Bb7 {[%clk 0:02:55]} 8. Bd2 {[%clk 0:02:50]}  a5 {[%clk 0:02:53]} 9. Bd3 {[%clk 0:02:47]}  g6 {[%clk 0:02:53]} 10. O-O {[%clk 0:02:44]}  Bg7 {[%clk 0:02:53]} 11. Nc3 {[%clk 0:02:29]}  O-O {[%clk 0:02:52]} 12. e5 {[%clk 0:02:28]}  Nd5 {[%clk 0:02:47]} 13. Ne4 {[%clk 0:02:23]}  Nd7 {[%clk 0:02:43]} 14. h4 {[%clk 0:02:14]}  Nb4 {[%clk 0:02:12]} 15. Bxb4 {[%clk 0:02:13]}  axb4 {[%clk 0:02:13]} 16. Rad1 {[%clk 0:02:02]}  Nb6 {[%clk 0:02:10]} 17. Nc5 {[%clk 0:01:58]}  Bc8 {[%clk 0:02:10]} 18. Be4 {[%clk 0:01:54]}  Nd5 {[%clk 0:02:10]} 19. h5 {[%clk 0:01:52]}  Bg4 {[%clk 0:02:07]} 20. hxg6 {[%clk 0:01:48]}  hxg6 {[%clk 0:02:08]} 21. Ng5 {[%clk 0:01:41]}  Bxd1 {[%clk 0:02:04]} 22. Qxd1 {[%clk 0:01:38]}  e6 {[%clk 0:02:04]} 23. Qg4 {[%clk 0:01:37]}  Bh6 {[%clk 0:01:21]} 24. Ngxe6 {[%clk 0:01:33]}  Qe7 {[%clk 0:01:02]} 25. Nxf8 {[%clk 0:01:28]}  Bxf8 {[%clk 0:01:03]} 26. e6 {[%clk 0:01:23]}  Nf6 {[%clk 0:00:52]} 27. exf7+ {[%clk 0:01:20]}  Qxf7 {[%clk 0:00:53]} 28. Qf3 {[%clk 0:01:09]}  Bxc5 {[%clk 0:00:50]} 29. Bxc6 {[%clk 0:01:06]}  Ra3 {[%clk 0:00:46]} 30. dxc5 {[%clk 0:01:03]}  Rxb3 {[%clk 0:00:46]} 31. Qf4 {[%clk 0:01:00]}  Rc3 {[%clk 0:00:28]} 32. Qxb4 {[%clk 0:00:57]}  Qc4 {[%clk 0:00:29]} 33. Qxb5 {[%clk 0:00:52]}  Qxb5 {[%clk 0:00:28]} 34. Bxb5 {[%clk 0:00:52]}  Rxc5 {[%clk 0:00:29]} 35. Rb1 {[%clk 0:00:50]}  Kg7 {[%clk 0:00:29]} 36. Bd3 {[%clk 0:00:49]}  Rc7 {[%clk 0:00:28]} 37. g3 {[%clk 0:00:45]}  Re7 {[%clk 0:00:29]} 38. Rb6 {[%clk 0:00:44]}  Rd7 {[%clk 0:00:29]} 39. Bb1 {[%clk 0:00:42]}  Rd2 {[%clk 0:00:18]} 40. Kg2 {[%clk 0:00:40]}  Kf7 {[%clk 0:00:17]} 41. Kf3 {[%clk 0:00:37]}  Rd4 {[%clk 0:00:16]} 42. Ke3 {[%clk 0:00:36]}  Ra4 {[%clk 0:00:15]} 43. f3 {[%clk 0:00:35]}  Nd5+ {[%clk 0:00:16]} 44. Kf2 {[%clk 0:00:33]}  Nxb6 {[%clk 0:00:16]} 45. Bd3 {[%clk 0:00:32]}  Rb4 {[%clk 0:00:17]} 46. f4 {[%clk 0:00:30]}  Kf6 {[%clk 0:00:17]} 0-1


[Site "https://www.chess.com"]

[Event "Titled Tuesday Blitz September 28 2021"]
[White "Yoo, Christopher Woojin"]
[Black "Lewtak, Damian"]
[WhiteFideId "30909694"]
[BlackFideId "1141724"]
[WhiteElo "2105"]
[BlackElo "2231"]
[Result "1-0"]
[Round "09"]
[TimeControl "180+1"]
[Date "2021.09.28"]
[WhiteClock "0:00:12"]
[BlackClock "0:01:48"]

1. e4 {[%clk 0:02:53]}  e6 {[%clk 0:02:57]} 2. d4 {[%clk 0:02:53]}  d5 {[%clk 0:02:58]} 3. Bd3 {[%clk 0:02:52]}  dxe4 {[%clk 0:02:56]} 4. Bxe4 {[%clk 0:02:53]}  Nf6 {[%clk 0:02:57]} 5. Bf3 {[%clk 0:02:53]}  Nbd7 {[%clk 0:02:58]} 6. Ne2 {[%clk 0:02:52]}  Bd6 {[%clk 0:02:58]} 7. O-O {[%clk 0:02:53]}  O-O {[%clk 0:02:58]} 8. Nbc3 {[%clk 0:02:53]}  e5 {[%clk 0:02:59]} 9. Bg5 {[%clk 0:02:53]}  h6 {[%clk 0:02:58]} 10. Bh4 {[%clk 0:02:53]}  g5 {[%clk 0:02:56]} 11. Bg3 {[%clk 0:02:53]}  g4 {[%clk 0:02:56]} 12. Be4 {[%clk 0:02:53]}  Nxe4 {[%clk 0:02:56]} 13. Nxe4 {[%clk 0:02:52]}  f5 {[%clk 0:02:55]} 14. Nxd6 {[%clk 0:02:47]}  cxd6 {[%clk 0:02:56]} 15. dxe5 {[%clk 0:02:48]}  dxe5 {[%clk 0:02:53]} 16. Qd5+ {[%clk 0:02:48]}  Kg7 {[%clk 0:02:53]} 17. Bxe5+ {[%clk 0:02:48]}  Nxe5 {[%clk 0:02:54]} 18. Qxe5+ {[%clk 0:02:49]}  Qf6 {[%clk 0:02:54]} 19. Qxf6+ {[%clk 0:02:44]}  Kxf6 {[%clk 0:02:54]} 20. Nf4 {[%clk 0:02:44]}  Bd7 {[%clk 0:02:53]} 21. Rfe1 {[%clk 0:02:43]}  Rac8 {[%clk 0:02:52]} 22. Nd5+ {[%clk 0:02:38]}  Kg7 {[%clk 0:02:48]} 23. c3 {[%clk 0:02:37]}  Rfe8 {[%clk 0:02:47]} 24. Rad1 {[%clk 0:02:26]}  Kf7 {[%clk 0:02:46]} 25. f3 {[%clk 0:01:29]}  gxf3 {[%clk 0:02:38]} 26. gxf3 {[%clk 0:01:30]}  Be6 {[%clk 0:02:39]} 27. Kf2 {[%clk 0:01:27]}  Rcd8 {[%clk 0:02:33]} 28. Nc7 {[%clk 0:01:26]}  Rxd1 {[%clk 0:02:29]} 29. Rxd1 {[%clk 0:01:27]}  Rc8 {[%clk 0:02:29]} 30. Nxe6 {[%clk 0:01:27]}  Kxe6 {[%clk 0:02:29]} 31. Rd4 {[%clk 0:01:25]}  Rc6 {[%clk 0:02:26]} 32. Rb4 {[%clk 0:01:25]}  b6 {[%clk 0:02:26]} 33. Ra4 {[%clk 0:01:25]}  a5 {[%clk 0:02:27]} 34. Ke3 {[%clk 0:01:21]}  Kf6 {[%clk 0:02:24]} 35. Rd4 {[%clk 0:01:20]}  Kg5 {[%clk 0:02:20]} 36. h4+ {[%clk 0:01:15]}  Kg6 {[%clk 0:02:15]} 37. Kf4 {[%clk 0:01:13]}  b5 {[%clk 0:02:16]} 38. Ke5 {[%clk 0:01:01]}  Rc5+ {[%clk 0:02:15]} 39. Rd5 {[%clk 0:01:01]}  Rc4 {[%clk 0:02:16]} 40. Rxb5 {[%clk 0:00:54]}  Rxh4 {[%clk 0:02:12]} 41. Rxa5 {[%clk 0:00:54]}  Rh2 {[%clk 0:02:09]} 42. Ra6+ {[%clk 0:00:37]}  Kg5 {[%clk 0:02:09]} 43. f4+ {[%clk 0:00:37]}  Kg4 {[%clk 0:02:09]} 44. Rg6+ {[%clk 0:00:37]}  Kh5 {[%clk 0:02:09]} 45. Rg1 {[%clk 0:00:29]}  Rxb2 {[%clk 0:02:06]} 46. a4 {[%clk 0:00:26]}  Kh4 {[%clk 0:01:58]} 47. Kxf5 {[%clk 0:00:25]}  Ra2 {[%clk 0:01:56]} 48. Kg6 {[%clk 0:00:14]}  Rxa4 {[%clk 0:01:53]} 49. f5 {[%clk 0:00:14]}  Rc4 {[%clk 0:01:53]} 50. f6 {[%clk 0:00:14]}  Rxc3 {[%clk 0:01:53]} 51. f7 {[%clk 0:00:14]}  Rc8 {[%clk 0:01:52]} 52. Rh1+ {[%clk 0:00:13]}  Kg4 {[%clk 0:01:51]} 53. Rxh6 {[%clk 0:00:13]}  Kf4 {[%clk 0:01:51]} 54. Kg7 {[%clk 0:00:13]}  Kg5 {[%clk 0:01:52]} 55. Rh8 {[%clk 0:00:13]}  Rc7 {[%clk 0:01:50]} 56. Kg8 {[%clk 0:00:14]}  Kg6 {[%clk 0:01:48]} 57. f8=Q {[%clk 0:00:14]}  Rc5 {[%clk 0:01:48]} 58. Rh6+ {[%clk 0:00:12]}  Kg5 {[%clk 0:01:48]} 59. Qf6+ {[%clk 0:00:12]} 1-0


[Site "https://www.chess.com"]

[Event "Titled Tuesday Blitz September 28 2021"]
[White "Zhigalko, Sergei"]
[Black "Aitbayev, Aslan"]
[WhiteFideId "13502956"]
[BlackFideId "13704613"]
[WhiteElo "2888"]
[BlackElo "2774"]
[Result "1/2-1/2"]
[Round "09"]
[TimeControl "180+1"]
[Date "2021.09.28"]
[WhiteClock "0:00:05"]
[BlackClock "0:00:03"]

1. e4 {[%clk 0:03:00]}  e6 {[%clk 0:02:59]} 2. d4 {[%clk 0:03:00]}  d5 {[%clk 0:03:00]} 3. e5 {[%clk 0:03:00]}  c5 {[%clk 0:03:01]} 4. c3 {[%clk 0:03:00]}  Nc6 {[%clk 0:03:01]} 5. Nf3 {[%clk 0:03:00]}  Bd7 {[%clk 0:03:02]} 6. a3 {[%clk 0:02:54]}  Nge7 {[%clk 0:03:01]} 7. Bd3 {[%clk 0:02:49]}  cxd4 {[%clk 0:02:51]} 8. cxd4 {[%clk 0:02:49]}  Nf5 {[%clk 0:02:51]} 9. Bxf5 {[%clk 0:02:43]}  exf5 {[%clk 0:02:51]} 10. Nc3 {[%clk 0:02:44]}  Be6 {[%clk 0:02:50]} 11. Bg5 {[%clk 0:02:45]}  Qd7 {[%clk 0:02:45]} 12. h4 {[%clk 0:02:39]}  h6 {[%clk 0:02:44]} 13. Bf4 {[%clk 0:02:35]}  Be7 {[%clk 0:02:44]} 14. O-O {[%clk 0:02:30]}  O-O {[%clk 0:02:44]} 15. b4 {[%clk 0:02:17]}  Rfc8 {[%clk 0:02:43]} 16. Qd2 {[%clk 0:02:17]}  Kh7 {[%clk 0:02:35]} 17. Rfc1 {[%clk 0:02:15]}  Nd8 {[%clk 0:02:19]} 18. Qd3 {[%clk 0:02:05]}  Kg8 {[%clk 0:02:14]} 19. Qe3 {[%clk 0:01:53]}  Bf8 {[%clk 0:02:07]} 20. Nd2 {[%clk 0:01:49]}  Rc7 {[%clk 0:02:04]} 21. Qg3 {[%clk 0:01:41]}  Kh7 {[%clk 0:02:01]} 22. Qd3 {[%clk 0:01:21]}  Rac8 {[%clk 0:01:58]} 23. Nf1 {[%clk 0:01:06]}  Be7 {[%clk 0:01:46]} 24. g3 {[%clk 0:00:58]}  b6 {[%clk 0:01:03]} 25. Bd2 {[%clk 0:00:56]}  Kh8 {[%clk 0:00:52]} 26. Ne3 {[%clk 0:00:54]}  a5 {[%clk 0:00:40]} 27. bxa5 {[%clk 0:00:42]}  bxa5 {[%clk 0:00:39]} 28. a4 {[%clk 0:00:42]}  Bb4 {[%clk 0:00:35]} 29. Nb5 {[%clk 0:00:41]}  Rxc1+ {[%clk 0:00:34]} 30. Rxc1 {[%clk 0:00:39]}  Rxc1+ {[%clk 0:00:34]} 31. Bxc1 {[%clk 0:00:40]}  Nc6 {[%clk 0:00:25]} 32. Qc2 {[%clk 0:00:34]}  Be7 {[%clk 0:00:22]} 33. Bd2 {[%clk 0:00:32]}  Nb4 {[%clk 0:00:22]} 34. Qc3 {[%clk 0:00:22]}  Kh7 {[%clk 0:00:19]} 35. Ng2 {[%clk 0:00:16]}  Qc6 {[%clk 0:00:17]} 36. Qxc6 {[%clk 0:00:08]}  Nxc6 {[%clk 0:00:17]} 37. Nf4 {[%clk 0:00:07]}  Kg8 {[%clk 0:00:12]} 38. Kf1 {[%clk 0:00:06]}  g5 {[%clk 0:00:11]} 39. hxg5 {[%clk 0:00:05]}  hxg5 {[%clk 0:00:12]} 40. Nh3 {[%clk 0:00:05]}  f4 {[%clk 0:00:11]} 41. Kg2 {[%clk 0:00:05]}  fxg3 {[%clk 0:00:10]} 42. Kxg3 {[%clk 0:00:04]}  Bxh3 {[%clk 0:00:09]} 43. Kxh3 {[%clk 0:00:05]}  f6 {[%clk 0:00:08]} 44. exf6 {[%clk 0:00:02]}  Bxf6 {[%clk 0:00:08]} 45. Kg4 {[%clk 0:00:01]}  Nxd4 {[%clk 0:00:07]} 46. Bxa5 {[%clk 0:00:01]}  Nc6 {[%clk 0:00:03]} 47. Bd2 {[%clk 0:00:01]}  Kf7 {[%clk 0:00:03]} 48. Bxg5 {[%clk 0:00:01]}  Be5 {[%clk 0:00:03]} 49. Bf4 {[%clk 0:00:02]}  Ke6 {[%clk 0:00:04]} 50. Bxe5 {[%clk 0:00:02]}  Nxe5+ {[%clk 0:00:05]} 51. Kg3 {[%clk 0:00:02]}  Nc4 {[%clk 0:00:05]} 52. Nc3 {[%clk 0:00:02]}  Ke5 {[%clk 0:00:06]} 53. Nd1 {[%clk 0:00:02]}  d4 {[%clk 0:00:06]} 54. Kf3 {[%clk 0:00:03]}  Kd5 {[%clk 0:00:05]} 55. Ke2 {[%clk 0:00:03]}  Ne5 {[%clk 0:00:05]} 56. Nb2 {[%clk 0:00:03]}  Ke4 {[%clk 0:00:04]} 57. Nd1 {[%clk 0:00:02]}  d3+ {[%clk 0:00:04]} 58. Kf1 {[%clk 0:00:02]}  Nc4 {[%clk 0:00:04]} 59. Nc3+ {[%clk 0:00:03]}  Kd4 {[%clk 0:00:04]} 60. Nd1 {[%clk 0:00:03]}  Kc5 {[%clk 0:00:03]} 61. Ke1 {[%clk 0:00:03]}  Kb4 {[%clk 0:00:03]} 62. f4 {[%clk 0:00:03]}  Kxa4 {[%clk 0:00:03]} 63. Nf2 {[%clk 0:00:03]}  Kb4 {[%clk 0:00:02]} 64. Nxd3+ {[%clk 0:00:03]}  Kc3 {[%clk 0:00:03]} 65. Ne5 {[%clk 0:00:03]}  Nd6 {[%clk 0:00:03]} 66. Kf2 {[%clk 0:00:02]}  Kd4 {[%clk 0:00:04]} 67. Kf3 {[%clk 0:00:03]}  Kd5 {[%clk 0:00:04]} 68. Kg4 {[%clk 0:00:04]}  Ke6 {[%clk 0:00:04]} 69. Nf3 {[%clk 0:00:05]}  Kf6 {[%clk 0:00:03]} 70. Ng5 {[%clk 0:00:05]}  Nf5 {[%clk 0:00:02]} 71. Kf3 {[%clk 0:00:06]}  Nh4+ {[%clk 0:00:02]} 72. Ke4 {[%clk 0:00:06]}  Ng6 {[%clk 0:00:02]} 73. Nh7+ {[%clk 0:00:06]}  Kg7 {[%clk 0:00:02]} 74. f5 {[%clk 0:00:06]}  Kxh7 {[%clk 0:00:02]} 75. fxg6+ {[%clk 0:00:05]}  Kxg6 {[%clk 0:00:03]} 1/2-1/2


[Site "https://www.chess.com"]

[Event "Titled Tuesday Blitz September 28 2021"]
[White "pawel83"]
[Black "Sieciechowicz, Marcin"]
[BlackFideId "1130170"]
[WhiteElo "2442"]
[BlackElo "2318"]
[Result "1-0"]
[Round "09"]
[TimeControl "180+1"]
[Date "2021.09.28"]
[WhiteClock "0:01:44"]
[BlackClock "0:00:07"]

1. d4 {[%clk 0:03:00]}  Nf6 {[%clk 0:01:29]} 2. Nf3 {[%clk 0:02:59]}  g6 {[%clk 0:01:28]} 3. c4 {[%clk 0:02:58]}  Bg7 {[%clk 0:01:29]} 4. Nc3 {[%clk 0:02:59]}  O-O {[%clk 0:01:30]} 5. e4 {[%clk 0:02:59]}  d6 {[%clk 0:01:30]} 6. Be2 {[%clk 0:02:59]}  e5 {[%clk 0:01:30]} 7. dxe5 {[%clk 0:02:59]}  dxe5 {[%clk 0:01:30]} 8. Qxd8 {[%clk 0:03:00]}  Rxd8 {[%clk 0:01:30]} 9. Bg5 {[%clk 0:03:01]}  c6 {[%clk 0:01:28]} 10. Nd2 {[%clk 0:02:57]}  h6 {[%clk 0:01:26]} 11. Bh4 {[%clk 0:02:57]}  g5 {[%clk 0:01:26]} 12. Bg3 {[%clk 0:02:57]}  Nbd7 {[%clk 0:01:26]} 13. f3 {[%clk 0:02:56]}  Re8 {[%clk 0:01:26]} 14. Bf2 {[%clk 0:02:52]}  Bf8 {[%clk 0:01:24]} 15. a3 {[%clk 0:02:46]}  Bc5 {[%clk 0:01:23]} 16. Nb3 {[%clk 0:02:43]}  Bxf2+ {[%clk 0:01:23]} 17. Kxf2 {[%clk 0:02:43]}  Nf8 {[%clk 0:01:06]} 18. Rhd1 {[%clk 0:02:42]}  Be6 {[%clk 0:01:06]} 19. Na5 {[%clk 0:02:38]}  Rab8 {[%clk 0:01:04]} 20. c5 {[%clk 0:02:36]}  Ng6 {[%clk 0:00:57]} 21. Nc4 {[%clk 0:02:33]}  Bxc4 {[%clk 0:00:55]} 22. Bxc4 {[%clk 0:02:33]}  Kf8 {[%clk 0:00:54]} 23. Rd6 {[%clk 0:02:30]}  Ke7 {[%clk 0:00:53]} 24. Rad1 {[%clk 0:02:29]}  Nf8 {[%clk 0:00:43]} 25. Ke3 {[%clk 0:02:18]}  N8d7 {[%clk 0:00:43]} 26. b4 {[%clk 0:02:09]}  Rec8 {[%clk 0:00:42]} 27. Ne2 {[%clk 0:02:06]}  Rc7 {[%clk 0:00:22]} 28. Ng3 {[%clk 0:02:05]}  Kf8 {[%clk 0:00:19]} 29. Nf5 {[%clk 0:02:01]}  h5 {[%clk 0:00:19]} 30. Nh6 {[%clk 0:01:51]}  b6 {[%clk 0:00:18]} 31. Nxf7 {[%clk 0:01:45]}  bxc5 {[%clk 0:00:16]} 32. bxc5 {[%clk 0:01:46]}  g4 {[%clk 0:00:08]} 33. Ng5 {[%clk 0:01:45]}  gxf3 {[%clk 0:00:07]} 34. Ne6+ {[%clk 0:01:44]} 1-0


[Site "https://www.chess.com"]

[Event "Titled Tuesday Blitz September 28 2021"]
[White "Aghasiyev, Kamal"]
[Black "Kanyamarala, Tarun"]
[WhiteFideId "13402854"]
[BlackFideId "45004714"]
[WhiteElo "2210"]
[BlackElo "2077"]
[Result "0-1"]
[Round "10"]
[TimeControl "180+1"]
[Date "2021.09.28"]
[WhiteClock "0:01:44"]
[BlackClock "0:01:50"]

1. d4 {[%clk 0:02:59]}  Nf6 {[%clk 0:02:59]} 2. c4 {[%clk 0:02:58]}  e6 {[%clk 0:03:00]} 3. g3 {[%clk 0:02:58]}  d5 {[%clk 0:02:58]} 4. Nf3 {[%clk 0:02:58]}  h6 {[%clk 0:02:57]} 5. Bg2 {[%clk 0:02:56]}  Bd6 {[%clk 0:02:57]} 6. Nbd2 {[%clk 0:02:54]}  O-O {[%clk 0:02:56]} 7. O-O {[%clk 0:02:54]}  b6 {[%clk 0:02:56]} 8. Qc2 {[%clk 0:02:51]}  Bb7 {[%clk 0:02:55]} 9. cxd5 {[%clk 0:02:46]}  exd5 {[%clk 0:02:54]} 10. Nh4 {[%clk 0:02:36]}  Re8 {[%clk 0:02:49]} 11. Nf5 {[%clk 0:02:35]}  Rxe2 {[%clk 0:02:47]} 12. b3 {[%clk 0:02:18]}  Nc6 {[%clk 0:02:41]} 13. a3 {[%clk 0:02:15]}  Ne7 {[%clk 0:02:37]} 14. Ne3 {[%clk 0:02:11]}  Ba6 {[%clk 0:02:30]} 15. Rd1 {[%clk 0:02:09]}  c5 {[%clk 0:02:21]} 16. dxc5 {[%clk 0:02:04]}  Bxc5 {[%clk 0:02:20]} 17. Bb2 {[%clk 0:01:51]}  Bxe3 {[%clk 0:02:07]} 18. fxe3 {[%clk 0:01:50]}  Rc8 {[%clk 0:02:06]} 19. Qb1 {[%clk 0:01:48]}  Ng4 {[%clk 0:02:04]} 20. Nf1 {[%clk 0:01:44]}  Rcc2 {[%clk 0:01:50]} 0-1


[Site "https://www.chess.com"]

[Event "Titled Tuesday Blitz September 28 2021"]
[White "Andreikin, Dmitry"]
[Black "Demidov, Mikhail"]
[WhiteFideId "4158814"]
[BlackFideId "4197143"]
[WhiteElo "2736"]
[BlackElo "2546"]
[Result "0-1"]
[Round "10"]
[TimeControl "180+1"]
[Date "2021.09.28"]
[WhiteClock "0:00:10"]
[BlackClock "0:00:16"]

1. Nf3 {[%clk 0:03:00]}  g6 {[%clk 0:02:55]} 2. e4 {[%clk 0:02:59]}  Bg7 {[%clk 0:02:55]} 3. d4 {[%clk 0:02:58]}  d6 {[%clk 0:02:56]} 4. Bc4 {[%clk 0:02:58]}  Nf6 {[%clk 0:02:55]} 5. Qe2 {[%clk 0:02:58]}  Nc6 {[%clk 0:02:46]} 6. e5 {[%clk 0:02:57]}  dxe5 {[%clk 0:02:46]} 7. dxe5 {[%clk 0:02:57]}  Ng4 {[%clk 0:02:46]} 8. e6 {[%clk 0:02:57]}  Bxe6 {[%clk 0:02:39]} 9. Bxe6 {[%clk 0:02:57]}  fxe6 {[%clk 0:02:39]} 10. Ng5 {[%clk 0:02:44]}  Nd4 {[%clk 0:02:33]} 11. Qxg4 {[%clk 0:02:44]}  Nxc2+ {[%clk 0:02:33]} 12. Ke2 {[%clk 0:02:45]}  Nxa1 {[%clk 0:02:25]} 13. Nxe6 {[%clk 0:01:52]}  Qd6 {[%clk 0:02:13]} 14. Nxg7+ {[%clk 0:01:52]}  Kf7 {[%clk 0:02:12]} 15. Bh6 {[%clk 0:01:49]}  Qe5+ {[%clk 0:01:49]} 16. Kf3 {[%clk 0:01:45]}  Rhf8 {[%clk 0:01:45]} 17. Qc4+ {[%clk 0:01:34]}  e6 {[%clk 0:01:45]} 18. Na3 {[%clk 0:01:14]}  Ke7+ {[%clk 0:01:23]} 19. Kg4 {[%clk 0:01:09]}  Rxf2 {[%clk 0:01:11]} 20. Kh3 {[%clk 0:01:00]}  Raf8 {[%clk 0:00:27]} 21. Qh4+ {[%clk 0:00:19]}  Kd7 {[%clk 0:00:24]} 22. Nc4 {[%clk 0:00:19]}  Qd5 {[%clk 0:00:17]} 23. Rxa1 {[%clk 0:00:10]}  Qxg2# {[%clk 0:00:16]} 0-1


[Site "https://www.chess.com"]